bitfinex/quotes_SOLUSD_20241111
["timestamp","ask_amount","ask_price","bid_price","bid_amount"]
[1731335202289,26.65457781,217.05,216.97,26.65457781]
[1731335202708,23.776884,217.04,216.97,26.65457781]
[1731335203098,28.384284,217.04,216.97,31.26337781]
[1731335203299,26.65457781,217.07,216.99,26.65457781]
[1731335203610,23.776884,217.06,216.99,26.65457781]
[1731335204283,23.776884,217.06,217.01,26.65457781]
[1731335205603,4.607,217.06,216.99,31.26287781]
[1731335205799,26.65457781,217.05,216.99,4.6083]
[1731335205997,26.65457781,217.05,216.99,3.47501675]
[1731335206690,4.6074,217.04,216.97,42.78567781]
[1731335207706,50.43146181,217.03,216.95,31.26377781]
[1731335207907,26.65457781,217.0,216.93,42.78837781]
[1731335208094,20.0,216.93,216.86,10.0]
[1731335208297,26.65457781,216.89,216.86,10.0]
[1731335208489,23.776884,216.92,216.86,10.0]
[1731335208693,26.65457781,216.95,216.86,36.65457781]
[1731335208904,23.776884,216.94,216.88,26.65457781]
[1731335209102,26.65457781,216.95,216.88,26.65457781]
[1731335209306,23.776884,216.94,216.86,52.79377781]
[1731335209793,28.386384,216.94,216.86,52.79377781]
[1731335210185,26.65457781,216.97,216.88,26.65457781]
[1731335211400,26.65457781,216.99,216.9,26.65457781]
[1731335211605,23.776884,216.98,216.9,26.65457781]
[1731335212115,31.26317781,216.99,216.92,26.65457781]
[1731335212288,26.65457781,216.97,216.88,26.65457781]
[1731335212493,26.65457781,216.95,216.88,26.65457781]
[1731335212810,23.776884,216.96,216.88,26.65457781]
[1731335213811,23.776884,216.96,216.88,31.26517781]
[1731335213812,28.385984,216.96,216.88,31.26517781]
[1731335214094,26.65457781,216.95,216.88,31.26517781]
[1731335214414,26.65457781,216.95,216.88,26.65457781]
[1731335214618,26.65457781,216.95,216.87,4.6109]
[1731335215110,26.65457781,216.91,216.86,10.0]
[1731335215493,26.65457781,216.89,216.86,10.0]
[1731335215994,26.65457781,216.87,216.86,10.0]
[1731335216401,50.43146181,216.87,216.86,10.0]
[1731335217107,70.43146181,216.87,216.86,10.0]
[1731335219409,50.43146181,216.87,216.86,10.0]
[1731335219619,26.65457781,216.89,216.86,10.0]
[1731335219819,33.37277781,216.96,216.86,10.0]
[1731335219820,26.65457781,216.91,216.86,10.0]
[1731335220114,26.65457781,216.92,216.86,41.26577781]
[1731335220422,31.26407781,216.94,216.86,41.26577781]
[1731335220716,26.65457781,216.91,216.86,10.0]
[1731335221014,26.65457781,216.89,216.86,10.0]
[1731335221205,26.65457781,216.9,216.86,10.0]
[1731335221404,26.65457781,216.92,216.86,10.0]
[1731335221741,26.65457781,216.93,216.86,36.65457781]
[1731335221915,31.26437781,216.93,216.86,36.65457781]
[1731335222113,31.26437781,216.93,216.86,10.0]
[1731335222311,26.65457781,216.93,216.86,14.6112]
[1731335222519,11.5218,216.98,216.91,26.65457781]
[1731335222520,26.65457781,216.98,216.91,26.65457781]
[1731335222704,26.65457781,216.99,216.92,26.65457781]
[1731335223201,26.65457781,216.97,216.9,32.94927781]
[1731335223724,26.65457781,216.92,216.89,15.7268]
[1731335224218,26.65457781,216.92,216.86,21.5281]
[1731335224424,26.65457781,216.92,216.86,26.1393]
[1731335225401,26.65457781,216.9,216.86,10.0]
[1731335225605,26.65457781,216.89,216.86,10.0]
[1731335225801,26.65457781,216.87,216.86,10.0]
[1731335226016,50.43146181,216.87,216.86,10.0]
[1731335226216,26.65457781,216.87,216.86,10.0]
[1731335226418,23.776884,216.9,216.86,10.0]
[1731335226608,4.61,216.92,216.86,36.65457781]
[1731335227116,31.26437781,216.93,216.86,36.65457781]
[1731335227314,28.387384,216.9,216.86,10.0]
[1731335227511,26.65457781,216.89,216.86,10.0]
[1731335228008,26.65457781,216.91,216.86,10.0]
[1731335228324,26.65457781,216.91,216.86,14.6111]
[1731335228998,50.43146181,216.94,216.86,52.79377781]
[1731335229204,4.6093,216.95,216.89,26.65457781]
[1731335229619,26.65457781,216.99,216.91,26.65457781]
[1731335229929,26.65457781,216.99,216.92,26.65457781]
[1731335230318,26.65457781,217.01,216.94,26.65457781]
[1731335231534,26.65457781,217.01,216.93,26.65457781]
[1731335231712,31.26267781,217.01,216.94,4.6095]
[1731335232023,31.26267781,217.01,216.92,16.1342]
[1731335232229,26.65457781,216.96,216.9,6.4734]
[1731335232927,26.65457781,216.93,216.9,6.4734]
[1731335233236,26.65457781,216.91,216.86,10.0]
[1731335233408,26.65457781,216.89,216.86,10.0]
[1731335234030,31.26507781,216.9,216.86,10.0]
[1731335234744,23.776884,216.89,216.86,10.0]
[1731335235104,26.65457781,216.94,216.86,36.65457781]
[1731335235330,26.65457781,216.91,216.86,10.0]
[1731335235532,26.65457781,216.89,216.86,10.0]
[1731335236336,26.65457781,216.87,216.86,10.0]
[1731335236520,50.43146181,216.87,216.86,10.0]
[1731335237742,75.04246181,216.87,216.86,10.0]
[1731335243530,48.387884,216.87,216.86,10.0]
[1731335243836,75.04246181,216.87,216.86,10.0]
[1731335246941,4.611,216.87,216.86,10.0]
[1731335247145,4.6108,216.89,216.86,10.0]
[1731335247441,31.26537781,216.89,216.86,10.0]
[1731335247843,4.6108,216.89,216.86,10.0]
[1731335248043,26.65457781,216.87,216.86,10.0]
[1731335248249,26.65457781,216.87,216.86,6.17258694]
[1731335248742,31.26557781,216.87,216.86,6.17258694]
[1731335249124,81.93015093,216.87,216.86,6.17258694]
[1731335249638,43.776884,216.86,216.74,4.6137]
[1731335249849,26.65457781,216.8,216.72,37.73067781]
[1731335250045,23.776884,216.77,216.72,6.4621]
[1731335250219,26.65457781,216.78,216.72,11.0763]
[1731335250424,26.65457781,216.82,216.74,26.65457781]
[1731335250736,28.389184,216.81,216.74,31.26817781]
[1731335251248,28.389184,216.81,216.74,42.80267781]
[1731335251829,26.65457781,216.87,216.79,26.65457781]
[1731335252037,26.65457781,216.85,216.78,26.65457781]
[1731335252343,26.65457781,216.86,216.78,26.65457781]
[1731335252540,26.65457781,216.89,216.81,26.65457781]
[1731335252744,31.26497781,216.9,216.84,21.727]
[1731335252930,4.6104,216.9,216.85,1.14992201]
[1731335253243,26.65457781,216.93,216.85,1.14992201]
[1731335253437,26.65457781,216.87,216.85,1.14992201]
[1731335253637,26.65457781,216.86,216.78,11.5319]
[1731335254035,26.65457781,216.86,216.79,26.65457781]
[1731335254339,31.73225426,216.96,216.79,26.65457781]
[1731335254340,26.65457781,216.88,216.79,26.65457781]
[1731335254540,26.65457781,216.89,216.81,26.65457781]
[1731335254744,26.65457781,216.87,216.81,31.26677781]
[1731335254939,9.19275354,216.86,216.81,31.26677781]
[1731335255146,26.65457781,216.88,216.81,31.26677781]
[1731335255450,26.65457781,216.9,216.83,26.65457781]
[1731335255830,26.65457781,216.88,216.81,42.79757781]
[1731335256441,31.26517781,216.89,216.82,26.65457781]
[1731335256749,26.65457781,216.89,216.82,26.65457781]
[1731335256950,26.65457781,216.9,216.83,26.65457781]
[1731335257161,26.65457781,216.86,216.81,11.5308]
[1731335257327,26.65457781,216.86,216.78,26.65457781]
[1731335257529,26.65457781,216.83,216.77,17.5853]
[1731335257750,26.65457781,216.83,216.77,22.1984]
[1731335257956,26.65457781,216.87,216.79,26.65457781]
[1731335258155,26.65457781,216.89,216.81,26.65457781]
[1731335258647,26.65457781,216.86,216.78,26.65457781]
[1731335258946,26.65457781,216.86,216.78,31.26727781]
[1731335259532,31.26517781,216.89,216.81,26.65457781]
[1731335260146,26.65457781,216.87,216.79,26.65457781]
[1731335260459,70.2,216.97,216.78,16.1451]
[1731335260460,26.65457781,216.92,216.83,26.65457781]
[1731335260657,26.65457781,216.9,216.83,31.26637781]
[1731335260850,26.65457781,216.92,216.85,26.65457781]
[1731335261055,26.65457781,216.95,216.87,26.65457781]
[1731335261234,26.65457781,216.88,216.78,26.65457781]
[1731335261441,26.65457781,216.85,216.77,37.32017781]
[1731335262349,26.65457781,216.85,216.77,48.85307781]
[1731335262557,26.65457781,216.96,216.79,26.65457781]
[1731335262558,26.65457781,216.87,216.79,26.65457781]
[1731335262754,31.26567781,216.87,216.8,4.6125]
[1731335264536,26.65457781,216.85,216.78,16.1453]
[1731335266163,26.65457781,216.83,216.78,11.5324]
[1731335266459,26.65457781,216.81,216.77,6.0525]
[1731335267547,26.65457781,216.81,216.75,4.6135]
[1731335268037,26.65457781,216.81,216.74,16.1483]
[1731335269439,4.6117,216.84,216.77,26.65457781]
[1731335270455,4.6117,216.84,216.77,31.26767781]
[1731335270642,26.65457781,216.83,216.77,4.6131]
[1731335271365,26.65457781,216.83,216.74,11.5345]
[1731335271540,26.65457781,216.78,216.71,22.3771]
[1731335271740,42.79547781,216.84,216.66,4.6155]
[1731335271741,26.65457781,216.74,216.66,4.6155]
[1731335271944,26.65457781,216.72,216.66,16.154]
[1731335272255,26.65457781,216.74,216.67,26.65457781]
[1731335272444,26.65457781,216.76,216.67,26.65457781]
[1731335272643,4.6136,216.75,216.68,4.6151]
[1731335272872,4.6136,216.75,216.69,26.65457781]
[1731335273665,26.65457781,216.76,216.69,26.65457781]
[1731335274867,31.26797781,216.76,216.7,16.1512]
[1731335275163,77.18614063,216.84,216.7,16.1512]
[1731335275164,26.65457781,216.78,216.71,26.65457781]
[1731335275350,26.65457781,216.8,216.71,26.65457781]
[1731335275550,26.65457781,216.78,216.71,26.65457781]
[1731335275856,26.65457781,216.78,216.7,16.1512]
[1731335276160,26.65457781,216.76,216.68,4.6148]
[1731335276362,26.65457781,216.74,216.66,16.154]
[1731335276547,26.65457781,216.72,216.66,16.154]
[1731335277060,4.6142,216.73,216.66,16.154]
[1731335277264,26.65457781,216.76,216.67,26.65457781]
[1731335277443,26.65457781,216.76,216.69,26.65457781]
[1731335277639,4.6129,216.78,216.69,26.65457781]
[1731335277870,26.65457781,216.79,216.71,26.65457781]
[1731335278038,31.26647781,216.83,216.75,26.65457781]
[1731335278242,26.65457781,216.81,216.75,26.65457781]
[1731335279356,26.65457781,216.85,216.77,26.65457781]
[1731335279747,4.6112,216.86,216.79,26.65457781]
[1731335279962,26.65457781,216.83,216.78,6.212]
[1731335280173,4.6112,216.86,216.78,6.212]
[1731335280174,26.65457781,216.85,216.78,6.212]
[1731335280746,26.65457781,216.8,216.77,15.1067]
[1731335281063,26.65457781,216.8,216.73,10.9452]
[1731335281270,26.65457781,216.8,216.74,26.65457781]
[1731335281466,26.65457781,216.75,216.67,21.5091]
[1731335281654,26.65457781,216.75,216.67,26.1243]
[1731335281966,26.65457781,216.73,216.67,21.5091]
[1731335283166,26.65457781,216.73,216.67,26.1243]
[1731335283381,4.614,216.73,216.67,21.5091]
[1731335283559,4.614,216.73,216.67,15.3981]
[1731335283560,26.65457781,216.71,216.67,15.3981]
[1731335284278,31.26857781,216.73,216.67,15.3981]
[1731335284460,31.26857781,216.73,216.67,20.0133]
[1731335284771,31.26857781,216.73,216.67,15.3981]
[1731335286361,4.614,216.73,216.67,15.3981]
[1731335286565,26.65457781,216.79,216.71,26.65457781]
[1731335286866,26.65457781,216.83,216.75,26.65457781]
[1731335287068,37.456,216.93,216.7,0.1]
[1731335287272,11.5263,216.9,216.73,0.1]
[1731335287466,4.6099,216.92,216.73,0.1]
[1731335287679,4.6099,216.92,216.75,0.1]
[1731335287878,4.6099,216.92,216.76,6.5008]
[1731335288182,11.5239,216.94,216.76,6.5008]
[1731335288183,26.65457781,216.91,216.84,26.65457781]
[1731335288367,26.65457781,216.9,216.82,26.65457781]
[1731335288762,31.26407781,216.94,216.86,26.65457781]
[1731335289398,26.65457781,216.92,216.85,26.65457781]
[1731335289568,26.65457781,216.9,216.82,26.65457781]
[1731335289769,4.6106,216.89,216.82,26.65457781]
[1731335289976,26.65457781,216.87,216.79,4.6126]
[1731335290164,26.65457781,216.85,216.77,42.80047781]
[1731335291385,31.26607781,216.85,216.77,42.80047781]
[1731335292186,31.26607781,216.85,216.76,6.5008]
[1731335292187,26.65457781,216.81,216.76,6.5008]
[1731335292787,31.26607781,216.85,216.77,26.65457781]
[1731335292966,4.6112,216.87,216.8,26.65457781]
[1731335293168,26.65457781,216.93,216.85,26.65457781]
[1731335293467,26.65457781,216.94,216.86,26.65457781]
[1731335293667,31.26307781,216.99,216.91,26.65457781]
[1731335293875,18.454195,216.94,216.91,26.65457781]
[1731335294065,26.65457781,216.95,216.88,6.4398]
[1731335294265,26.65457781,216.91,216.81,16.1655]
[1731335294564,26.65457781,216.89,216.81,42.82007781]
[1731335294774,26.65457781,216.94,216.87,26.65457781]
[1731335294980,36.05254537,216.99,216.91,26.65457781]
[1731335295377,26.65457781,216.96,216.88,11.5269]
[1731335295572,26.65457781,216.96,216.88,38.18147781]
[1731335295992,26.65457781,216.93,216.85,31.26597781]
[1731335296175,26.65457781,216.92,216.85,4.6114]
[1731335296370,26.65457781,216.92,216.85,31.26597781]
[1731335296566,26.65457781,216.92,216.85,26.65457781]
[1731335297284,4.61,216.92,216.87,26.65457781]
[1731335297481,23.776884,216.95,216.88,26.65457781]
[1731335297683,26.65457781,216.96,216.89,26.65457781]
[1731335297890,26.65457781,216.97,216.9,26.65457781]
[1731335298097,4.6087,216.98,216.85,11.5287]
[1731335298098,26.65457781,216.91,216.85,11.5287]
[1731335298388,26.65457781,216.91,216.83,4.6117]
[1731335298587,26.65457781,216.95,216.88,26.65457781]
[1731335298773,26.65457781,216.97,216.89,26.65457781]
[1731335299187,26.65457781,216.96,216.88,26.65457781]
[1731335299499,26.65457781,216.94,216.86,26.65457781]
[1731335299787,26.65457781,216.92,216.86,26.65457781]
[1731335299985,26.65457781,216.94,216.86,26.65457781]
[1731335300190,23.776884,216.93,216.82,1.15008112]
[1731335300487,26.65457781,216.92,216.85,26.65457781]
[1731335300790,26.65457781,216.9,216.83,26.65457781]
[1731335300987,26.65457781,216.88,216.82,1.15008112]
[1731335301195,23.776884,216.87,216.82,1.15008112]
[1731335301378,26.65457781,216.88,216.82,5.76208112]
[1731335301572,31.26497781,216.9,216.83,26.65457781]
[1731335301897,26.65457781,216.88,216.82,12.68038112]
[1731335302595,23.776884,216.88,216.82,12.68038112]
[1731335302889,23.776884,216.88,216.81,42.82007781]
[1731335303301,26.65457781,216.91,216.83,26.65457781]
[1731335303503,26.65457781,216.9,216.84,31.26617781]
[1731335303676,26.65457781,216.94,216.87,26.65457781]
[1731335303998,9.39796756,216.99,216.92,26.65457781]
[1731335304320,20.91916756,216.99,216.84,22.2042]
[1731335304499,26.65457781,216.92,216.84,48.85877781]
[1731335304874,26.65457781,216.95,216.88,26.65457781]
[1731335305081,26.65457781,216.97,216.9,26.65457781]
[1731335305390,26.65457781,216.97,216.9,31.26477781]
[1731335305608,31.26357781,216.97,216.89,11.5265]
[1731335305904,31.26317781,216.99,216.9,26.65457781]
[1731335306099,4.6086,216.99,216.92,26.65457781]
[1731335306673,31.26257781,217.02,216.94,26.65457781]
[1731335306871,31.26257781,217.02,216.95,26.65457781]
[1731335307074,26.65457781,217.01,216.93,26.65457781]
[1731335307569,26.65457781,216.97,216.9,15.7559]
[1731335307768,26.65457781,216.97,216.9,20.3662]
[1731335307993,16.1284,217.01,216.9,20.3662]
[1731335307994,16.1284,217.01,216.9,15.7559]
[1731335308178,26.65457781,216.93,216.86,4.6111]
[1731335308574,26.65457781,216.91,216.86,4.6111]
[1731335308770,26.65457781,216.87,216.84,6.0634]
[1731335308996,26.65457781,216.89,216.84,10.675]
[1731335310376,26.65457781,216.91,216.84,22.2042]
[1731335311496,26.65457781,216.89,216.84,17.5926]
[1731335311698,31.26527781,216.89,216.84,17.5926]
[1731335311878,31.26527781,216.89,216.84,6.0634]
[1731335312081,31.26527781,216.89,216.8,11.5312]
[1731335312082,26.65457781,216.85,216.8,11.5312]
[1731335312491,26.65457781,216.85,216.8,16.1437]
[1731335312879,26.65457781,216.85,216.8,11.5312]
[1731335313898,31.26607781,216.85,216.8,11.5312]
[1731335314588,26.65457781,216.83,216.79,23.0103]
[1731335314786,26.65457781,216.83,216.75,42.80177781]
[1731335316598,26.65457781,216.87,216.79,26.65457781]
[1731335316816,26.65457781,216.83,216.75,42.80177781]
[1731335317795,26.65457781,216.81,216.75,16.1472]
[1731335318104,26.65457781,216.77,216.71,11.5359]
[1731335318281,26.65457781,216.75,216.71,11.5359]
[1731335318476,26.65457781,216.77,216.71,16.1503]
[1731335318898,26.65457781,216.79,216.71,42.80487781]
[1731335319083,51.26557781,216.87,216.77,26.65457781]
[1731335319291,51.26557781,216.87,216.72,31.05189295]
[1731335319292,31.26557781,216.87,216.8,26.65457781]
[1731335319488,26.65457781,216.9,216.75,0.1]
[1731335319680,4.6107,216.89,216.81,26.65457781]
[1731335320390,9.19151983,216.94,216.83,26.65457781]
[1731335320391,4.6103,216.91,216.83,26.65457781]
[1731335320719,0.1,217.08,216.9,6.0691]
[1731335320884,21.1875604,217.11,217.03,26.65457781]
[1731335320885,0.8012604,217.11,217.03,26.65457781]
[1731335321198,0.8012604,217.11,216.98,0.2]
[1731335321199,26.65457781,217.19,217.1,17.15722742]
[1731335321401,26.65457781,217.2,217.12,26.65457781]
[1731335322603,26.65457781,217.22,217.14,26.65457781]
[1731335322807,4.6034,217.23,217.16,26.65457781]
[1731335323213,26.65457781,217.24,217.16,26.65457781]
[1731335324003,20.0,217.23,217.16,26.65457781]
[1731335324709,20.0,217.21,217.16,26.65457781]
[1731335324906,20.0,217.21,217.15,43.29233454]
[1731335325100,43.29233454,217.17,217.1,11.5154]
[1731335325407,43.29233454,217.19,217.12,43.29233454]
[1731335325715,23.776884,217.18,217.12,43.29233454]
[1731335326490,43.29233454,217.17,217.08,43.29233454]
[1731335326690,23.776884,217.16,217.08,43.29233454]
[1731335327012,23.776884,217.16,217.1,43.29233454]
[1731335327406,23.776884,217.16,217.08,43.29233454]
[1731335327601,4.6045,217.18,217.08,43.29233454]
[1731335327602,23.776884,217.14,217.08,43.29233454]
[1731335327798,4.6045,217.18,217.1,43.29233454]
[1731335327799,43.776884,217.16,217.1,43.29233454]
[1731335328194,23.776884,217.16,217.1,43.29233454]
[1731335328414,4.6045,217.18,217.1,43.29233454]
[1731335328415,67.06921854,217.17,217.1,43.29233454]
[1731335328596,43.29233454,217.21,217.14,43.29233454]
[1731335328906,23.776884,217.2,217.14,43.29233454]
[1731335329094,23.776884,217.18,217.12,43.29233454]
[1731335329292,43.29233454,217.13,217.01,6.0691]
[1731335329502,93.776884,217.18,217.01,6.0691]
[1731335329503,43.29233454,217.07,217.01,6.0691]
[1731335329701,23.776884,217.06,217.01,6.0691]
[1731335329910,43.29233454,217.07,217.01,6.0691]
[1731335330111,23.776884,217.08,217.01,49.36143454]
[1731335330410,23.776884,217.06,217.01,6.0691]
[1731335330586,43.29233454,217.07,217.01,6.0691]
[1731335330791,23.776884,217.08,217.01,53.96933454]
[1731335331107,23.776884,217.06,217.01,6.0691]
[1731335332189,4.6067,217.08,217.01,49.36143454]
[1731335332590,23.776884,217.08,217.01,53.96933454]
[1731335333392,23.776884,217.1,217.03,43.29233454]
[1731335333789,43.29233454,217.13,217.01,22.1972]
[1731335333985,43.29233454,217.14,217.07,43.29233454]
[1731335334207,47.89773454,217.14,217.07,43.29233454]
[1731335334408,4.6025,217.27,217.14,21.9297]
[1731335334614,4.6025,217.27,217.19,43.29233454]
[1731335335614,43.29233454,217.26,217.19,43.29233454]
[1731335335815,43.29233454,217.23,217.16,11.5119]
[1731335336123,43.29233454,217.21,217.14,69.82713454]
[1731335336613,43.29233454,217.23,217.14,81.34043454]
[1731335336818,43.29233454,217.23,217.16,43.29233454]
[1731335337016,47.89513454,217.26,217.18,43.29233454]
[1731335338316,4.6028,217.26,217.22,43.29233454]
[1731335338506,4.6023,217.28,217.22,43.29233454]
[1731335338708,4.6023,217.28,217.24,43.29233454]
[1731335339602,43.29233454,217.3,217.22,43.29233454]
[1731335339801,23.776884,217.29,217.22,43.29233454]
[1731335340295,43.29233454,217.3,217.22,43.29233454]
[1731335340609,43.29233454,217.3,217.2,16.1141]
[1731335340610,20.0,217.29,217.2,59.40643454]
[1731335340809,20.0,217.29,217.22,43.29233454]
[1731335341203,43.29233454,217.26,217.18,43.29233454]
[1731335341403,20.0,217.25,217.18,43.29233454]
[1731335341615,28.380084,217.24,217.18,43.29233454]
[1731335342996,23.776884,217.22,217.15,11.5124]
[1731335343322,24.6021,217.29,217.2,43.29233454]
[1731335343490,24.6021,217.29,217.22,43.29233454]
[1731335344318,4.6021,217.29,217.24,43.29233454]
[1731335344500,23.776884,217.28,217.24,43.29233454]
[1731335345501,28.379284,217.28,217.24,43.29233454]
[1731335346098,23.776884,217.28,217.26,43.29233454]
[1731335346310,23.776884,217.28,217.24,43.29233454]
[1731335346614,28.379284,217.28,217.24,43.29233454]
[1731335347520,23.776884,217.25,217.2,43.29233454]
[1731335347818,23.776884,217.25,217.22,43.29233454]
[1731335348020,4.6015,217.32,217.24,43.29233454]
[1731335348222,23.776884,217.29,217.25,43.29233454]
[1731335348524,20.0,217.31,217.25,43.29233454]
[1731335348897,20.0,217.31,217.25,26.61939304]
[1731335349413,4.6019,217.3,217.23,26.61939304]
[1731335349620,23.776884,217.29,217.22,26.61939304]
[1731335349804,23.776884,217.29,217.23,26.61939304]
[1731335351119,23.776884,217.29,217.25,26.61939304]
[1731335352022,23.776884,217.29,217.27,26.61939304]
[1731335352212,28.377884,217.34,217.27,26.61939304]
[1731335352417,28.377884,217.34,217.29,26.61939304]
[1731335353222,23.776884,217.32,217.25,26.61939304]
[1731335353396,16.1037,217.34,217.22,6.1882]
[1731335353397,26.61939304,217.29,217.22,6.1882]
[1731335353597,23.776884,217.28,217.21,41.78929304]
[1731335353799,23.776884,217.26,217.21,41.78929304]
[1731335354328,23.776884,217.24,217.19,26.61939304]
[1731335354815,50.39627704,217.24,217.17,6.0573]
[1731335355025,26.61939304,217.21,217.13,26.61939304]
[1731335355219,23.776884,217.2,217.16,26.61939304]
[1731335355401,20.0,217.23,217.17,26.61939304]
[1731335355603,23.776884,217.23,217.18,26.61939304]
[1731335355801,23.776884,217.23,217.2,26.61939304]
[1731335356023,23.776884,217.25,217.19,26.61939304]
[1731335356223,23.776884,217.23,217.19,26.61939304]
[1731335357297,23.776884,217.23,217.2,26.61939304]
[1731335358501,23.776884,217.24,217.2,26.61939304]
[1731335358706,23.776884,217.24,217.21,26.61939304]
[1731335359228,23.776884,217.24,217.22,26.61939304]
[1731335359428,4.6031,217.25,217.22,26.61939304]
[1731335360311,23.776884,217.28,217.24,26.61939304]
[1731335360510,28.379184,217.28,217.26,26.61939304]
[1731335360727,54.99857704,217.28,217.2,26.61939304]
[1731335361726,20.0,217.25,217.2,26.61939304]
[1731335362026,23.776884,217.24,217.18,26.61939304]
[1731335362404,4.6034,217.23,217.18,26.61939304]
[1731335362621,28.380084,217.24,217.21,26.61939304]
[1731335363005,28.380084,217.24,217.2,26.61939304]
[1731335363204,28.380084,217.24,217.19,26.61939304]
[1731335363610,23.776884,217.22,217.17,26.61939304]
[1731335364513,23.776884,217.2,217.15,26.61939304]
[1731335365224,23.776884,217.2,217.17,26.61939304]
[1731335365822,28.380984,217.2,217.17,26.61939304]
[1731335366017,28.380984,217.2,217.16,26.61939304]
[1731335366408,28.380984,217.2,217.14,26.61939304]
[1731335366615,23.776884,217.18,217.14,26.61939304]
[1731335367016,23.776884,217.19,217.16,26.61939304]
[1731335367924,23.776884,217.23,217.18,26.61939304]
[1731335369131,4.6032,217.24,217.18,26.61939304]
[1731335369333,4.6032,217.24,217.21,26.61939304]
[1731335370026,31.22189304,217.27,217.2,26.61939304]
[1731335370228,23.776884,217.26,217.2,26.61939304]
[1731335370632,20.0,217.25,217.2,26.61939304]
[1731335371131,4.6025,217.27,217.2,26.61939304]
[1731335371635,4.6025,217.27,217.22,26.61939304]
[1731335371814,26.61939304,217.31,217.22,26.61939304]
[1731335372712,23.776884,217.3,217.22,26.61939304]
[1731335372932,20.0,217.29,217.22,26.61939304]
[1731335373231,23.776884,217.28,217.22,26.61939304]
[1731335373935,23.776884,217.28,217.24,26.61939304]
[1731335374114,4.6019,217.3,217.24,26.61939304]
[1731335374423,4.601,217.34,217.28,26.61939304]
[1731335374623,4.601,217.34,217.29,26.61939304]
[1731335374824,4.6008,217.35,217.29,26.61939304]
[1731335375017,4.6008,217.35,217.28,26.61939304]
[1731335375234,4.6008,217.35,217.29,26.61939304]
[1731335375433,4.6008,217.35,217.31,26.61939304]
[1731335375736,4.6008,217.35,217.29,26.61939304]
[1731335376513,4.6008,217.35,217.31,26.61939304]
[1731335376924,17.6588,217.42,217.27,16.1089]
[1731335376925,26.61939304,217.4,217.33,26.61939304]
[1731335377123,31.21899304,217.41,217.34,26.61939304]
[1731335377617,31.21899304,217.41,217.32,26.61939304]
[1731335378120,26.61939304,217.38,217.27,16.1089]
[1731335378430,20.0,217.37,217.31,26.61939304]
[1731335378611,4.6006,217.36,217.31,26.61939304]
[1731335378811,20.0,217.37,217.31,26.61939304]
[1731335379216,4.6003,217.38,217.31,31.22099304]
[1731335379526,4.6003,217.38,217.33,26.61939304]
[1731335379717,20.0,217.39,217.33,26.61939304]
[1731335379917,24.5996,217.41,217.33,26.61939304]
[1731335380616,23.776884,217.4,217.34,4.601]
[1731335380819,24.5996,217.41,217.35,26.61939304]
[1731335381733,4.5996,217.41,217.35,26.61939304]
[1731335381927,20.0,217.43,217.35,26.61939304]
[1731335381928,23.776884,217.42,217.35,26.61939304]
[1731335382309,50.39627704,217.42,217.35,26.61939304]
[1731335382517,50.39627704,217.42,217.33,26.61939304]
[1731335386324,16.62296939,217.37,217.26,16.1096]
[1731335386520,43.776884,217.36,217.29,16.62296939]
[1731335387335,43.776884,217.36,217.26,16.1096]
[1731335387336,23.776884,217.39,217.34,16.62296939]
[1731335387913,23.776884,217.41,217.34,16.62296939]
[1731335388236,28.376484,217.41,217.34,16.62296939]
[1731335388447,23.776884,217.35,217.19,6.435]
[1731335388621,20.0,217.19,217.04,11.5184]
[1731335388944,16.62296939,217.17,217.08,16.62296939]
[1731335389515,43.776884,217.16,217.08,16.62296939]
[1731335389729,23.776884,217.14,217.06,16.62296939]
[1731335389915,20.0,217.16,217.11,16.62296939]
[1731335390118,4.6048,217.17,217.11,16.62296939]
[1731335390337,23.776884,217.18,217.11,16.62296939]
[1731335390941,23.776884,217.18,217.11,26.65049292]
[1731335391140,23.776884,217.18,217.05,20.0]
[1731335391141,26.65049292,217.17,217.08,26.65049292]
[1731335391529,26.65049292,217.17,217.09,4.6063]
[1731335392822,23.776884,217.18,217.1,26.65049292]
[1731335393126,26.65049292,217.33,217.18,21.3556]
[1731335393438,26.65049292,217.38,217.28,26.65049292]
[1731335394233,26.65049292,217.38,217.3,26.65049292]
[1731335394427,26.65049292,217.4,217.3,31.25219292]
[1731335394623,26.65049292,217.38,217.3,31.25219292]
[1731335394828,26.65049292,217.36,217.3,11.5048]
[1731335395042,26.65049292,217.34,217.26,26.65049292]
[1731335395347,26.65049292,217.34,217.24,38.15829292]